bitfinex-derivatives/quotes_BTCF0:USTF0_20260207
["timestamp","ask_amount","ask_price","bid_price","bid_amount"]
[1770456502351,0.57615515,68573.0,68540.0,0.5324573]
[1770456502746,0.59074615,68573.0,68545.0,0.5324573]
[1770456503145,0.014592,68571.0,68545.0,0.5324573]
[1770456503446,0.57615515,68564.0,68537.0,0.5324573]
[1770456503646,0.014596,68550.0,68529.0,0.5324573]
[1770456503845,0.00013091,68549.0,68529.0,0.5324573]
[1770456504456,0.00013091,68549.0,68516.0,0.0002]
[1770456504457,0.014597,68544.0,68521.0,0.5324573]
[1770456504753,0.59075115,68548.0,68521.0,0.5324573]
[1770456504945,0.00013091,68549.0,68521.0,0.5324573]
[1770456505139,0.00013091,68549.0,68520.0,0.14878291]
[1770456505140,0.00013091,68549.0,68526.0,0.5324573]
[1770456506154,0.014597,68547.0,68526.0,0.5324573]
[1770456506351,0.57615515,68543.0,68516.0,0.5324573]
[1770456507641,0.57615515,68543.0,68513.0,0.5324573]
[1770456507939,0.014591,68571.0,68513.0,0.5324573]
[1770456507940,0.57615515,68539.0,68513.0,0.5324573]
[1770456508151,0.07296,68570.0,68506.0,0.0002]
[1770456508152,0.57615515,68553.0,68519.0,0.5324573]
[1770456508352,0.014596,68548.0,68519.0,0.5324573]
[1770456508540,0.014596,68550.0,68519.0,0.5472593]
[1770456508950,0.014597,68547.0,68519.0,0.5306573]
[1770456509148,0.57615515,68546.0,68519.0,0.5306573]
[1770456509652,0.014595,68555.0,68519.0,0.5452593]
[1770456509954,0.59075015,68555.0,68521.0,0.5470593]
[1770456510650,0.014593,68563.0,68531.0,0.5324573]
[1770456510953,0.57615515,68565.0,68531.0,0.5324573]
[1770456512240,0.57615515,68560.0,68531.0,0.5324573]
[1770456512446,0.014596,68552.0,68531.0,0.5324573]
[1770456513951,0.014596,68549.0,68531.0,0.5324573]
[1770456514155,0.014596,68549.0,68522.0,0.5324573]
[1770456514551,0.59075015,68552.0,68522.0,0.5324573]
[1770456514748,0.014595,68556.0,68529.0,0.5324573]
[1770456515148,0.57615515,68560.0,68529.0,0.5324573]
[1770456515455,0.014593,68563.0,68533.0,0.5324573]
[1770456515954,0.014594,68561.0,68533.0,0.5324573]
[1770456518153,0.52652818,68583.0,68552.0,0.58247188]
[1770456518453,0.52652818,68603.0,68561.0,0.58247188]
[1770456518756,0.014588,68588.0,68561.0,0.58247188]
[1770456519348,0.001,68583.0,68561.0,0.58247188]
[1770456519655,0.001,68583.0,68550.0,0.14878291]
[1770456519656,0.001,68583.0,68563.0,0.58247188]
[1770456520056,0.014587,68591.0,68565.0,0.58247188]
[1770456520553,0.014588,68589.0,68565.0,0.58247188]
[1770456520750,0.014587,68592.0,68565.0,0.58247188]
[1770456521259,0.54111318,68602.0,68574.0,0.58247188]
[1770456521559,0.014585,68600.0,68574.0,0.58247188]
[1770456521859,0.54111318,68600.0,68574.0,0.58247188]
[1770456522461,0.52652818,68593.0,68564.0,0.58247188]
[1770456523358,0.014587,68591.0,68564.0,0.58247188]
[1770456523764,0.014588,68589.0,68564.0,0.58247188]
[1770456524063,0.014587,68592.0,68564.0,0.58247188]
[1770456524264,0.54111518,68592.0,68564.0,0.58247188]
[1770456524564,0.54111518,68590.0,68564.0,0.58247188]
[1770456524767,0.54111618,68586.0,68564.0,0.58247188]
[1770456525150,0.52652818,68586.0,68564.0,0.58247188]
[1770456525759,0.014587,68591.0,68564.0,0.58247188]
[1770456526349,0.52652818,68595.0,68564.0,0.58247188]
[1770456526656,0.014588,68589.0,68564.0,0.58247188]
[1770456527261,0.54111518,68590.0,68564.0,0.58247188]
[1770456528152,0.52652818,68587.0,68564.0,0.58247188]
[1770456529461,0.014586,68595.0,68536.0,0.0002]
[1770456529462,0.52652818,68577.0,68555.0,0.58247188]
[1770456529656,0.014589,68584.0,68555.0,0.59706688]
[1770456529964,0.014589,68582.0,68555.0,0.59706688]
[1770456531670,0.52652818,68596.0,68564.0,0.58247188]
[1770456531961,0.014588,68587.0,68564.0,0.58247188]
[1770456532159,0.014589,68585.0,68564.0,0.58247188]
[1770456532365,0.52652818,68592.0,68564.0,0.58247188]
[1770456532557,0.014589,68585.0,68564.0,0.58247188]
[1770456533961,0.014589,68583.0,68564.0,0.58247188]
[1770456534362,0.52652818,68585.0,68564.0,0.58247188]
[1770456534663,0.54111818,68579.0,68555.0,0.58247188]
[1770456534867,0.01459,68579.0,68555.0,0.58247188]
[1770456535056,0.014589,68582.0,68555.0,0.59706688]
[1770456535258,0.52652818,68599.0,68564.0,0.58247188]
[1770456535460,0.014588,68585.0,68564.0,0.58247188]
[1770456538876,0.014588,68588.0,68564.0,0.58247188]
[1770456539272,0.014588,68586.0,68564.0,0.58247188]
[1770456542474,0.52652818,68602.0,68572.0,0.58247188]
[1770456542674,0.52652818,68595.0,68572.0,0.58247188]
[1770456542981,0.014587,68591.0,68572.0,0.58247188]
[1770456543183,0.54111518,68594.0,68572.0,0.58247188]
[1770456545781,0.014587,68592.0,68572.0,0.58247188]
[1770456548887,0.52652818,68594.0,68572.0,0.58247188]
[1770456549587,0.58252903,68582.0,68564.0,0.56107211]
[1770456550084,0.59711803,68582.0,68564.0,0.56107211]
[1770456551789,0.01459,68580.0,68564.0,0.56107211]
[1770456552582,0.58252903,68573.0,68555.0,0.56107211]
[1770456552782,0.014593,68565.0,68543.0,0.56107211]
[1770456552978,0.014593,68563.0,68543.0,0.56107211]
[1770456553183,0.58252903,68567.0,68543.0,0.56107211]
[1770456553374,0.58252903,68565.0,68543.0,0.56107211]
[1770456553579,0.014593,68564.0,68543.0,0.56107211]
[1770456553780,0.014593,68562.0,68543.0,0.56107211]
[1770456554181,0.58252903,68565.0,68543.0,0.56107211]
[1770456554485,0.014594,68559.0,68543.0,0.56107211]
[1770456554687,0.014595,68556.0,68543.0,0.56107211]
[1770456554981,0.014594,68559.0,68533.0,0.56107211]
[1770456555580,0.014595,68557.0,68533.0,0.56107211]
[1770456555791,0.014596,68549.0,68533.0,0.56107211]
[1770456557484,0.58252903,68552.0,68533.0,0.56107211]
[1770456557886,0.014596,68551.0,68533.0,0.56107211]
[1770456559490,0.014596,68549.0,68533.0,0.56107211]
[1770456559688,0.58252903,68561.0,68533.0,0.56107211]
[1770456559889,0.58252903,68572.0,68539.0,0.56107211]
[1770456560192,0.014593,68566.0,68541.0,0.56107211]
[1770456560779,0.014593,68564.0,68541.0,0.56107211]
[1770456562494,0.014594,68559.0,68541.0,0.56107211]
[1770456562696,0.014594,68558.0,68541.0,0.56107211]
[1770456563795,0.58252903,68572.0,68541.0,0.56107211]
[1770456563994,0.014594,68560.0,68541.0,0.56107211]
[1770456565486,0.014594,68558.0,68541.0,0.56107211]
[1770456566396,0.58252903,68575.0,68543.0,0.56107211]
[1770456566599,0.014592,68567.0,68543.0,0.56107211]
[1770456567694,0.58252903,68571.0,68543.0,0.56107211]
[1770456567894,0.014593,68566.0,68543.0,0.56107211]
[1770456570301,0.014592,68570.0,68547.0,0.56107211]
[1770456570692,0.58252903,68581.0,68549.0,0.56107211]
[1770456570693,0.01459,68576.0,68549.0,0.56107211]
[1770456571094,0.58252903,68581.0,68549.0,0.56107211]
[1770456572002,0.014591,68574.0,68549.0,0.56107211]
[1770456572200,0.58252903,68573.0,68549.0,0.56107211]
[1770456572504,0.58252903,68567.0,68541.0,0.56107211]
[1770456573505,0.014594,68559.0,68541.0,0.56107211]
[1770456575700,0.014593,68563.0,68541.0,0.56107211]
[1770456576904,0.014594,68561.0,68541.0,0.56107211]
[1770456577202,0.52766028,68564.0,68541.0,0.56107211]
[1770456577408,0.54225528,68555.0,68534.0,0.54239213]
[1770456577710,0.014596,68552.0,68534.0,0.54239213]
[1770456578296,0.014596,68548.0,68534.0,0.54239213]
[1770456581307,0.014593,68566.0,68517.0,0.54239213]
[1770456581308,0.014599,68537.0,68517.0,0.54239213]
[1770456582509,0.52766028,68538.0,68517.0,0.54239213]
[1770456582909,0.014602,68522.0,68512.0,0.00016474]
[1770456583905,0.014602,68522.0,68510.0,0.52756344]
[1770456584414,0.52766028,68523.0,68499.0,0.54239213]
[1770456584810,0.014603,68515.0,68499.0,0.54239213]
[1770456585006,0.00015068,68514.0,68499.0,0.54239213]
[1770456587917,0.014602,68522.0,68499.0,0.54239213]
[1770456588116,0.014601,68526.0,68501.0,0.54239213]
[1770456588319,0.52766028,68536.0,68503.0,0.54239213]
[1770456588913,4.535e-05,68535.0,68503.0,0.54239213]
[1770456589113,4.535e-05,68535.0,68500.0,0.0002]
[1770456589114,4.535e-05,68535.0,68507.0,0.54239213]
[1770456589412,0.0146,68533.0,68510.0,0.54239213]
[1770456589617,4.535e-05,68535.0,68510.0,0.54239213]
[1770456589618,0.014599,68534.0,68510.0,0.54239213]
[1770456589806,0.014599,68534.0,68510.0,0.54259213]
[1770456590014,4.535e-05,68535.0,68510.0,0.54259213]
[1770456590713,0.01464435,68535.0,68510.0,0.54259213]
[1770456591019,0.014599,68534.0,68510.0,0.54239213]
[1770456591418,4.535e-05,68535.0,68511.0,0.014604]
[1770456591620,4.535e-05,68535.0,68516.0,0.54239213]
[1770456592821,0.0146,68531.0,68516.0,0.54239213]
[1770456593821,0.0146,68529.0,68516.0,0.54239213]
[1770456594022,4.535e-05,68528.0,68516.0,0.54239213]
[1770456597322,0.014599,68534.0,68516.0,0.54239213]
[1770456597623,0.0146,68532.0,68516.0,0.54239213]
[1770456598119,0.0146,68530.0,68516.0,0.54239213]
[1770456598517,0.52766028,68529.0,68507.0,0.54239213]
[1770456598714,0.014601,68527.0,68507.0,0.54239213]
[1770456599319,0.52766028,68526.0,68485.0,0.54239213]
[1770456599527,0.5810813,68576.0,68501.0,0.54239213]
[1770456599528,0.52766028,68529.0,68501.0,0.54239213]
[1770456599717,0.014602,68520.0,68501.0,0.54239213]
[1770456599913,0.014602,68520.0,68507.0,0.54239213]
[1770456600128,0.014603,68518.0,68507.0,0.54239213]
[1770456601825,0.014598,68538.0,68507.0,0.54239213]
[1770456601826,0.014602,68521.0,68507.0,0.54239213]
[1770456602020,0.54226028,68533.0,68509.0,0.54239213]
[1770456602221,0.014601,68524.0,68509.0,0.54239213]
[1770456602420,0.014602,68522.0,68509.0,0.54239213]
[1770456602615,0.014601,68525.0,68509.0,0.54239213]
[1770456602917,0.014596,68549.0,68509.0,0.54239213]
[1770456602918,0.52766028,68530.0,68509.0,0.54239213]
[1770456603123,0.52766028,68527.0,68501.0,0.54259213]
[1770456603422,0.014606,68505.0,68482.0,0.54239213]
[1770456603622,0.014606,68505.0,68482.0,0.54259213]
[1770456603819,0.52766028,68511.0,68482.0,0.54259213]
[1770456604018,0.014606,68505.0,68482.0,0.54259213]
[1770456604224,0.014606,68503.0,68485.0,0.54239213]
[1770456605327,0.014606,68501.0,68485.0,0.54239213]
[1770456605535,0.014606,68504.0,68485.0,0.54239213]
[1770456605731,0.014607,68497.0,68485.0,0.54239213]
[1770456605924,0.014606,68503.0,68485.0,0.54239213]
[1770456606127,0.014606,68501.0,68485.0,0.54239213]
[1770456606627,0.52766028,68510.0,68485.0,0.54239213]
[1770456608426,0.014606,68502.0,68485.0,0.54239213]
[1770456609229,0.52766028,68510.0,68485.0,0.54239213]
[1770456609230,0.014607,68500.0,68485.0,0.54239213]
[1770456611735,0.014606,68503.0,68485.0,0.54239213]
[1770456612139,0.53904065,68500.0,68480.0,0.0002]
[1770456612434,0.53904065,68497.0,68480.0,0.0002]
[1770456612736,0.014608,68496.0,68480.0,0.57334869]
[1770456612926,0.53904065,68503.0,68480.0,0.57334869]
[1770456612927,0.014606,68502.0,68480.0,0.57334869]
[1770456613126,0.53904065,68510.0,68480.0,0.57314869]
[1770456613841,0.014606,68502.0,68480.0,0.57314869]
[1770456616429,0.53904065,68518.0,68480.0,0.57314869]
[1770456616633,0.53904065,68518.0,68487.0,0.57314869]
[1770456617823,0.014605,68507.0,68487.0,0.57314869]
[1770456618231,0.014604,68510.0,68487.0,0.57314869]
[1770456618629,0.014604,68512.0,68487.0,0.57314869]
[1770456619332,0.014604,68510.0,68487.0,0.57314869]
[1770456619633,0.014607,68497.0,68484.0,0.0002]
[1770456619936,0.014607,68497.0,68480.0,0.57314869]
[1770456620330,0.014608,68495.0,68480.0,0.57314869]
[1770456620530,0.014608,68495.0,68467.0,0.0002]
[1770456620531,0.53904065,68498.0,68473.0,0.57314869]
[1770456620734,0.55364965,68490.0,68473.0,0.57314869]
[1770456621136,0.53904065,68490.0,68473.0,0.57314869]
[1770456621332,0.014608,68493.0,68473.0,0.57314869]
[1770456621728,0.55364865,68493.0,68473.0,0.57314869]
[1770456621929,0.53904065,68493.0,68473.0,0.57314869]
[1770456622335,0.55364665,68502.0,68478.0,0.57314869]
[1770456623341,0.014607,68498.0,68478.0,0.57314869]
[1770456623640,0.014607,68496.0,68478.0,0.57314869]
[1770456623936,0.53904065,68496.0,68478.0,0.57314869]
[1770456624635,0.53904065,68496.0,68462.0,0.00010791]
[1770456624636,0.53904065,68491.0,68466.0,0.014614]
[1770456624837,0.53904065,68492.0,68468.0,0.57334869]
[1770456625036,0.014609,68488.0,68468.0,0.57334869]
[1770456625233,0.014609,68488.0,68469.0,0.0002]
[1770456625640,0.53904065,68482.0,68462.0,0.00010791]
[1770456625827,0.014611,68479.0,68462.0,0.00010791]
[1770456626340,0.01461,68483.0,68462.0,0.5732566]
[1770456626538,0.014611,68481.0,68462.0,0.5732566]
[1770456626734,0.014611,68481.0,68463.0,0.57334869]
[1770456627734,0.01461,68482.0,68463.0,0.57334869]
[1770456627926,0.53904065,68487.0,68465.0,0.57314869]
[1770456628129,0.53904065,68478.0,68444.0,0.57314869]
[1770456628430,0.53904065,68478.0,68459.0,0.0002]
[1770456629040,0.014613,68470.0,68448.0,0.57314869]
[1770456629239,0.00010791,68469.0,68448.0,0.57314869]
[1770456630151,0.014609,68490.0,68426.0,0.11626848]
[1770456630152,0.53904065,68448.0,68426.0,0.11626848]
[1770456630443,0.014607,68497.0,68430.0,0.57314869]
[1770456630444,0.53904065,68473.0,68430.0,0.57314869]
[1770456630632,0.087666,68481.0,68430.0,0.57314869]
[1770456630633,0.53904065,68470.0,68430.0,0.57314869]
[1770456630834,0.014616,68457.0,68430.0,0.57314869]
[1770456631336,0.014616,68455.0,68430.0,0.57314869]
[1770456631638,0.014617,68452.0,68430.0,0.57314869]
[1770456632233,0.014617,68449.0,68430.0,0.57314869]
[1770456632835,0.53904065,68460.0,68430.0,0.57314869]
[1770456633244,0.014618,68445.0,68430.0,0.57314869]
[1770456633740,0.014619,68442.0,68434.0,0.0002]
[1770456634044,0.014617,68449.0,68430.0,0.57314869]
[1770456634538,0.014611,68480.0,68430.0,0.57314869]
[1770456634539,0.014612,68476.0,68436.0,0.57314869]
[1770456634745,0.014616,68455.0,68436.0,0.57314869]
[1770456634931,0.014615,68458.0,68436.0,0.57314869]
[1770456635133,0.014615,68458.0,68442.0,0.0002]
[1770456636042,0.53904065,68471.0,68442.0,0.56533998]
[1770456636346,0.53904065,68471.0,68442.0,0.56513998]
[1770456636543,0.56422441,68469.0,68441.0,0.0002]
[1770456636836,0.014613,68470.0,68434.0,0.56513998]
[1770456636837,0.56422441,68459.0,68434.0,0.56513998]
[1770456637036,0.56422441,68456.0,68434.0,0.56513998]
[1770456637246,0.014617,68451.0,68434.0,0.56513998]
[1770456637436,0.014616,68454.0,68436.0,0.56533998]
[1770456638640,0.014616,68454.0,68436.0,0.56513998]
[1770456639439,0.014617,68451.0,68436.0,0.56513998]
[1770456639636,0.014616,68454.0,68436.0,0.56513998]
[1770456639837,0.56422441,68467.0,68436.0,0.56513998]
[1770456639838,0.014616,68457.0,68436.0,0.56513998]
[1770456640144,0.014617,68451.0,68436.0,0.56513998]
[1770456641543,0.014616,68454.0,68436.0,0.56513998]
[1770456641745,0.014616,68458.0,68436.0,0.56513998]
[1770456641946,0.56422441,68458.0,68438.0,0.56533998]
[1770456642142,0.56422441,68456.0,68438.0,0.0002]
[1770456642447,0.014618,68449.0,68438.0,0.0002]
[1770456642637,0.014617,68452.0,68438.0,0.0002]
[1770456642832,0.014617,68450.0,68438.0,0.0002]
[1770456643041,0.014617,68450.0,68430.0,0.56513998]
[1770456643245,0.56422441,68454.0,68430.0,0.56513998]
[1770456643541,0.014618,68445.0,68430.0,0.56513998]
[1770456644045,0.01462,68438.0,68425.0,0.0002]
[1770456644246,0.56422441,68440.0,68416.0,0.0002]
[1770456644548,0.56422441,68440.0,68416.0,0.56533998]
[1770456645246,0.56422441,68457.0,68425.0,0.014622]
[1770456645437,0.56422441,68467.0,68430.0,0.56513998]
[1770456645634,0.014616,68457.0,68434.0,0.56513998]
[1770456646050,0.014616,68455.0,68434.0,0.56513998]
[1770456646246,0.014617,68453.0,68434.0,0.56513998]
[1770456646542,0.56422441,68468.0,68438.0,0.56513998]
[1770456646746,0.56422441,68468.0,68443.0,0.56513998]
[1770456646945,0.56422441,68468.0,68442.0,0.0002]
[1770456647242,0.56422441,68457.0,68442.0,0.0002]
[1770456647447,0.014616,68454.0,68442.0,0.0002]
[1770456647644,0.014617,68452.0,68442.0,0.0002]
[1770456647844,0.014617,68452.0,68438.0,0.56513998]
[1770456647845,0.014617,68452.0,68429.0,0.56513998]
[1770456648044,0.014616,68455.0,68429.0,0.57976198]
[1770456648641,0.014612,68475.0,68428.0,0.0002]
[1770456648642,0.014615,68460.0,68434.0,0.56513998]
[1770456648948,0.43234861,68478.0,68440.0,0.56513998]
[1770456648949,0.56422441,68478.0,68440.0,0.56513998]
[1770456649243,0.56422441,68478.0,68449.0,0.56513998]
[1770456649546,0.014611,68477.0,68451.0,0.56513998]
[1770456649948,0.014612,68475.0,68453.0,0.56513998]
[1770456650453,0.014611,68478.0,68453.0,0.56513998]
[1770456650645,0.012611,68478.0,68453.0,0.56513998]
[1770456650949,0.014611,68479.0,68453.0,0.56513998]
[1770456651950,0.01461,68483.0,68459.0,0.56513998]
[1770456652346,0.014612,68473.0,68455.0,0.0002]
[1770456652543,0.014613,68471.0,68455.0,0.0002]
[1770456653346,0.014614,68464.0,68443.0,0.56513998]
[1770456653544,0.56422441,68462.0,68440.0,0.0002]
[1770456653747,0.014615,68460.0,68440.0,0.56533998]
[1770456654046,0.56422441,68470.0,68440.0,0.56533998]
[1770456654240,0.014616,68455.0,68440.0,0.56533998]
[1770456654438,0.014616,68455.0,68440.0,0.0002]
[1770456654637,0.014616,68455.0,68432.0,0.56513998]
[1770456655642,0.012616,68455.0,68434.0,0.0002]
[1770456656039,0.014617,68451.0,68434.0,0.0002]
[1770456656544,0.014618,68449.0,68434.0,0.0002]
[1770456656844,0.014618,68449.0,68424.0,0.56513998]
[1770456657044,0.014618,68447.0,68424.0,0.56513998]
[1770456657646,0.014619,68444.0,68424.0,0.56513998]
[1770456657847,0.014619,68444.0,68426.0,0.0002]
[1770456658047,0.57884341,68442.0,68426.0,0.0002]
[1770456658352,0.014619,68443.0,68426.0,0.56533998]
[1770456659053,0.014619,68441.0,68426.0,0.56513998]
[1770456659451,0.014619,68441.0,68425.0,0.0002]
[1770456660147,0.01462,68439.0,68418.0,0.56513998]
[1770456660352,0.014619,68442.0,68418.0,0.56513998]
[1770456660750,0.014616,68457.0,68432.0,0.56513998]
[1770456661050,0.014617,68452.0,68432.0,0.56513998]
[1770456661352,0.014617,68452.0,68433.0,0.0002]
[1770456661555,0.56422441,68464.0,68433.0,0.57996098]
[1770456661940,0.014616,68456.0,68433.0,0.56533998]
[1770456662350,0.43234861,68471.0,68430.0,0.014621]
[1770456662351,0.43234861,68471.0,68441.0,0.56513998]
[1770456662659,0.56422441,68481.0,68446.0,0.56513998]
[1770456662848,0.43234861,68484.0,68460.0,0.56513998]
[1770456663048,0.56422441,68489.0,68460.0,0.56513998]
[1770456663049,0.014611,68480.0,68460.0,0.56513998]
[1770456663554,0.014613,68469.0,68452.0,0.56513998]
[1770456663852,0.014613,68472.0,68452.0,0.56513998]
[1770456664352,0.56422441,68480.0,68452.0,0.56513998]
[1770456664553,0.56422441,68480.0,68431.0,0.014621]
[1770456664554,0.56422441,68480.0,68454.0,0.56513998]
[1770456664757,0.014611,68478.0,68454.0,0.56513998]
[1770456664953,0.014611,68478.0,68454.0,0.57975598]
[1770456665150,0.014611,68478.0,68454.0,0.56513998]
[1770456665347,0.014612,68474.0,68454.0,0.56513998]
[1770456665854,0.56422441,68480.0,68454.0,0.56513998]
[1770456666663,0.014611,68481.0,68456.0,0.57432477]
[1770456667158,0.014609,68487.0,68460.0,0.57432477]
[1770456667356,0.56673975,68489.0,68462.0,0.57432477]
[1770456667656,0.014609,68487.0,68464.0,0.57432477]
[1770456668656,0.56673975,68502.0,68470.0,0.57432477]
[1770456668862,0.014608,68494.0,68470.0,0.57432477]
[1770456670459,0.58279713,68499.0,68470.0,0.57432477]
[1770456671162,0.014608,68493.0,68470.0,0.58893777]
[1770456671363,0.014608,68493.0,68470.0,0.57432477]
[1770456671658,0.014606,68501.0,68477.0,0.58122809]
[1770456672065,0.014606,68501.0,68470.0,0.14960228]
[1770456672066,0.014606,68504.0,68479.0,0.58122809]
[1770456673365,0.014606,68504.0,68481.0,0.58122809]
[1770456673764,0.014605,68507.0,68481.0,0.58122809]
[1770456674157,0.014604,68511.0,68485.0,0.58122809]
[1770456674657,0.014605,68508.0,68485.0,0.58122809]
[1770456676264,0.58279713,68512.0,68485.0,0.58122809]
[1770456676460,0.014604,68511.0,68485.0,0.58122809]
[1770456677256,0.014604,68510.0,68485.0,0.58122809]
[1770456677459,0.014605,68508.0,68485.0,0.58122809]
[1770456677657,0.014605,68508.0,68484.0,0.01461]
[1770456677658,0.014605,68508.0,68487.0,0.58122809]
[1770456677859,0.58279713,68517.0,68491.0,0.58122809]
[1770456677860,0.014604,68514.0,68491.0,0.58122809]
[1770456678566,0.014604,68512.0,68491.0,0.58122809]
[1770456682173,0.014603,68516.0,68491.0,0.58122809]
[1770456682368,0.014603,68519.0,68495.0,0.58122809]
[1770456682669,0.014604,68512.0,68495.0,0.58122809]
[1770456682866,0.58279713,68515.0,68475.0,0.58122809]
[1770456683254,0.58279713,68515.0,68475.0,0.82342809]
[1770456683454,0.014607,68499.0,68475.0,0.59584009]
[1770456684473,0.014607,68499.0,68475.0,0.58122809]
[1770456685164,0.58279713,68502.0,68475.0,0.58122809]
[1770456687471,0.014608,68494.0,68475.0,0.58122809]
[1770456688867,0.014607,68497.0,68475.0,0.58122809]
[1770456690267,0.58279713,68502.0,68475.0,0.58122809]
[1770456690473,0.58279713,68498.0,68467.0,0.58122809]
[1770456690667,0.014605,68505.0,68467.0,0.58122809]
[1770456690668,0.01461,68486.0,68467.0,0.58122809]
[1770456691570,0.58279713,68489.0,68467.0,0.58122809]
[1770456691770,0.58279713,68487.0,68467.0,0.58122809]
[1770456692367,0.014611,68481.0,68467.0,0.58122809]
[1770456692569,0.014611,68479.0,68467.0,0.58122809]
[1770456692771,0.58279713,68487.0,68462.0,0.00016847]
[1770456692772,0.014612,68477.0,68462.0,0.00016847]
[1770456693665,0.58279713,68476.0,68462.0,4.7e-07]
[1770456693875,0.58279713,68470.0,68452.0,0.58122809]
[1770456694575,0.014614,68465.0,68452.0,0.58122809]
[1770456694878,0.00012316,68464.0,68452.0,0.58122809]
[1770456695377,0.58279713,68477.0,68452.0,0.58122809]
[1770456695378,0.014613,68468.0,68452.0,0.58122809]
[1770456695577,0.014613,68472.0,68452.0,0.58122809]
[1770456695780,0.014613,68470.0,68452.0,0.58122809]
[1770456696173,4.531e-05,68469.0,68452.0,0.58122809]
[1770456696374,0.014613,68468.0,68452.0,0.58122809]
[1770456697380,0.57728819,68469.0,68444.0,0.57619525]
[1770456697575,0.014615,68462.0,68444.0,0.57619525]
[1770456697882,0.014615,68460.0,68444.0,0.57619525]
[1770456698079,0.014616,68454.0,68437.0,0.57639525]
[1770456698884,4.531e-05,68453.0,68437.0,0.0002]
[1770456699191,4.531e-05,68453.0,68428.0,0.57619525]
[1770456700275,0.57728819,68453.0,68432.0,0.0002]
[1770456700787,0.014619,68443.0,68428.0,0.57619525]
[1770456700974,0.014619,68441.0,68428.0,0.57619525]
[1770456701175,4.531e-05,68442.0,68428.0,0.57619525]
[1770456703078,0.014619,68440.0,68422.0,0.0002]
[1770456703486,0.014619,68440.0,68421.0,0.57619525]
[1770456703783,0.57724288,68439.0,68411.0,0.57619525]
[1770456703987,0.014622,68428.0,68411.0,0.57619525]
[1770456704289,0.014617,68452.0,68404.0,0.0002]
[1770456704290,0.014624,68421.0,68404.0,0.0002]
[1770456704478,0.014624,68418.0,68402.0,0.57619525]
[1770456704786,0.014623,68422.0,68402.0,0.57619525]
[1770456704978,0.014624,68419.0,68402.0,0.57619525]
[1770456705180,0.00012133,68418.0,68402.0,0.57619525]
[1770456705573,0.57724288,68449.0,68408.0,0.57619525]
[1770456705778,0.01462,68438.0,68414.0,0.57619525]
[1770456706084,0.01462,68436.0,68414.0,0.57619525]
[1770456706380,0.57724288,68441.0,68406.0,0.57619525]
[1770456706572,0.014622,68430.0,68410.0,0.57619525]
[1770456706777,0.014622,68428.0,68410.0,0.57619525]
[1770456707180,8.67e-05,68429.0,68409.0,0.57639525]
[1770456707380,8.67e-05,68428.0,68409.0,0.57639525]
[1770456707777,8.67e-05,68428.0,68412.0,0.57639525]
[1770456708779,0.014622,68427.0,68413.0,0.0002]
[1770456709585,0.014624,68419.0,68404.0,0.57619525]
[1770456709785,8.67e-05,68418.0,68404.0,0.57619525]
[1770456709986,8.67e-05,68418.0,68404.0,0.57639525]
[1770456710183,0.014624,68417.0,68404.0,0.0002]
[1770456710788,8.67e-05,68418.0,68404.0,0.0002]
[1770456710988,8.67e-05,68418.0,68401.0,0.0002]
[1770456711390,0.57724288,68417.0,68401.0,0.0002]
[1770456711684,0.57724288,68417.0,68387.0,0.57619525]
[1770456711889,8.67e-05,68418.0,68392.0,0.57639525]
[1770456712190,0.014618,68447.0,68405.0,0.57619525]
[1770456712191,0.57724288,68438.0,68405.0,0.57619525]
[1770456712388,0.014623,68422.0,68405.0,0.57619525]
[1770456712589,0.01462,68436.0,68404.0,0.0002]
[1770456712590,0.014624,68419.0,68404.0,0.0002]
[1770456712789,0.57724288,68430.0,68404.0,0.57639525]
[1770456712990,0.014622,68426.0,68404.0,0.57639525]
[1770456713191,0.014622,68426.0,68390.0,0.14963113]
[1770456713192,0.014622,68427.0,68409.0,0.57639525]
[1770456713691,0.57724288,68438.0,68409.0,0.57639525]
[1770456713692,0.014623,68425.0,68409.0,0.57639525]
[1770456714294,0.014621,68433.0,68412.0,0.57619525]
[1770456715496,0.014621,68433.0,68415.0,0.57619525]
[1770456717482,0.014621,68433.0,68411.0,0.0002]
[1770456717792,0.014623,68424.0,68411.0,0.0002]
[1770456717989,0.014623,68422.0,68411.0,0.0002]
[1770456718495,0.014624,68420.0,68411.0,0.0002]
[1770456718695,0.014624,68420.0,68406.0,0.57619525]
[1770456719890,0.014624,68418.0,68406.0,0.57619525]
[1770456720486,0.57724288,68424.0,68402.0,0.0002]
[1770456720683,0.57724288,68409.0,68388.0,0.0002]
[1770456720895,0.57724288,68380.0,68338.0,0.57619525]
[1770456721193,0.014629,68393.0,68367.0,0.57619525]
[1770456721788,0.01463,68389.0,68367.0,0.57619525]
[1770456722189,0.00012337,68388.0,68367.0,0.57619525]
[1770456722391,0.00012337,68388.0,68355.0,0.014637]
[1770456722392,0.57736625,68388.0,68357.0,0.57619525]
[1770456722697,0.014631,68384.0,68371.0,0.0002]
[1770456722891,0.00015537,68383.0,68357.0,0.56639525]
[1770456723198,0.014633,68378.0,68357.0,0.56639525]
[1770456723491,0.014634,68371.0,68357.0,0.56639525]
[1770456723696,0.014635,68369.0,68347.0,0.57619525]
[1770456723882,0.014635,68366.0,68347.0,0.57619525]
[1770456724286,0.014636,68363.0,68347.0,0.57619525]
[1770456724897,0.014633,68376.0,68347.0,0.59083425]
[1770456725093,0.59187288,68391.0,68351.0,0.57619525]
[1770456725299,0.014635,68368.0,68351.0,0.57619525]
[1770456725595,0.01463,68391.0,68351.0,0.57619525]
[1770456725596,0.014634,68372.0,68351.0,0.57619525]
[1770456726293,0.014634,68370.0,68351.0,0.57619525]
[1770456727497,0.014635,68367.0,68341.0,0.57687241]
[1770456727696,0.014635,68367.0,68358.0,0.0002]
[1770456727887,0.014635,68367.0,68341.0,0.57687241]
[1770456727888,0.014635,68367.0,68352.0,0.0002]
[1770456728985,0.56377363,68364.0,68337.0,0.00035127]
[1770456729191,0.014638,68355.0,68337.0,0.00035127]
[1770456729390,0.014632,68383.0,68338.0,0.57687241]
[1770456729391,0.56377363,68373.0,68338.0,0.57687241]
[1770456729692,0.56377363,68373.0,68338.0,0.57682241]
[1770456730090,0.56377363,68373.0,68340.0,0.57431755]
[1770456730492,0.56377363,68373.0,68311.0,0.11610847]
[1770456730493,0.014639,68350.0,68331.0,0.0002]
[1770456730689,0.014638,68355.0,68331.0,0.57431755]
[1770456730893,0.014637,68359.0,68331.0,0.58895955]
[1770456731099,0.014637,68359.0,68331.0,0.58875955]
[1770456731298,0.014637,68356.0,68331.0,0.57411755]
[1770456731495,0.00011787,68355.0,68331.0,0.57411755]